Cogmind - Beta 13 @@@ ROGUE MODE // 2024.03.17 @ 11:35:37 Player: Jezoensis Result: Self-destructed Performance ------------- Evolutions (1) 500 Regions Visited (5) 1000 Robots Destroyed (31) 155 Value Destroyed (473) 473 Prototype IDs (4) 80 Alien Tech Used (0) 0 Bonus (11) 11 TOTAL SCORE: 2219 Bonus ------- High Alert Combat Kills 11 Cogmind --------- Core Integrity 284/400 Matter 300/300 Energy 280/280 System Corruption 0% Temperature Cool (0) Movement Rolling (100) Ox1 Location -9/Exiles Parts ------- > --- POWER (1) -------- Heavy Ion Engine > --- PROPULSION (3) --- Light Treads Wheel Armored Wheel > --- UTILITY (3) ------ Medium Storage Unit Structural Scanner Hacking Suite > --- WEAPON (2) ------- Beamcaster Minigun > --- INVENTORY (10) --- High-capacity Matter Pod (200) Seismic Detector Reactive Plating Improved EM Shotgun Improved EM Shotgun Heavy Assault Rifle Heavy Assault Rifle Heavy Assault Rifle Rocket Launcher Great Maul Peak State ------------ > --- POWER ------------ Heavy Ion Engine > --- PROPULSION ------- Light Treads Wheel Armored Wheel > --- UTILITY ---------- Medium Storage Unit Hacking Suite System Shield > --- WEAPON ----------- Beamcaster Minigun > --- INVENTORY -------- High-capacity Matter Pod Structural Scanner Reactive Plating Improved EM Shotgun Improved EM Shotgun Heavy Assault Rifle Heavy Assault Rifle Heavy Assault Rifle Rocket Launcher Great Maul [Rating: 24] Favorites ----------- Power Light Ion Engine Engine Light Ion Engine Propulsion Wheel Treads Light Treads Wheel Wheel Utility Medium Storage Unit Device Structural Scanner Storage Medium Storage Unit Hackware Hacking Suite Protection Reactive Plating Weapon Minigun Energy Gun Beamcaster Ballistic Gun Minigun Launcher Grenade Launcher Build | -11 -10 -10 -9 -9 -9 ------- Run | Yrd Mat Min Mat Min Exi Slots Evolved 2 | . . . 2 . . Power . | . . . . . . Propulsion 1 | . . . 1 . . Utility 1 | . . . 1 . . Weapon . | . . . . . . Parts Attached 44 | 8 12 5 16 3 . Power 4 | 1 . 1 2 . . Engine 4 | 1 . 1 2 . . Core . | . . . . . . Reactor . | . . . . . . Propulsion 12 | 3 5 . 3 1 . Treads 4 | . 2 . 2 . . Leg . | . . . . . . Wheel 8 | 3 3 . 1 1 . Hover . | . . . . . . Flight . | . . . . . . Utility 10 | 2 2 . 4 2 . Device 4 | 1 1 . 1 1 . Storage 2 | 1 1 . . . . Processor . | . . . . . . Hackware 2 | . . . 2 . . Protection 2 | . . . 1 1 . Artifact . | . . . . . . Weapon 18 | 2 5 4 7 . . Energy Gun 5 | . 1 1 3 . . Energy Cannon . | . . . . . . Ballistic Gun 8 | 2 3 2 1 . . Ballistic Cannon . | . . . . . . Launcher 5 | . 1 1 3 . . Special Weapon . | . . . . . . Impact Weapon . | . . . . . . Slashing Weapon . | . . . . . . Piercing Weapon . | . . . . . . Special Melee Weapon . | . . . . . . Unidentified Prototypes . | . . . . . . Parts Lost . | . . . . . . Power . | . . . . . . Propulsion . | . . . . . . Utility . | . . . . . . Weapon . | . . . . . . Highest Loss Streak . | . . . . . . To Critical Strikes . | . . . . . . Average Slot Usage (%) 99 | . 99 100 98 100 100 Engine 12 | . 14 14 11 11 11 Treads 6 | . 1 . 11 11 11 Wheel 24 | . 26 28 22 22 22 Device 10 | . 13 14 4 10 11 Storage 12 | . 14 14 11 11 11 Hackware 7 | . . . 15 11 11 Energy Gun 7 | . 5 4 8 11 11 Ballistic Gun 16 | . 22 21 11 11 11 Naked Turns . | . . . . . . Heaviest Build 34 | 12 20 22 34 27 27 Greatest Support 22 | 20 22 22 22 22 22 Greatest Overweight (x) 1 | . 1 . 1 1 1 Average Overweight (x) . | . . . . 1 1 Largest Inventory Capacity 10 | 8 10 10 10 10 10 Average Capacity 9 | 6 9 10 10 10 10 Most Carried 10 | 6 10 10 10 10 10 Average Carried 9 | 4 8 9 9 10 10 Final Capacity 10 | 8 10 10 10 10 10 Final Carried 10 | 6 10 10 10 10 10 Class Distribution -------------------- 53% | Mutant 27% | Scavenger-Mutant 18% | Hacker-Mutant Dominant Class ---------------- Mutant | -10/Materials Mutant | -10/Mines Hacker-Mutant | -9/Materials Scavenger-Mutant | -9/Mines Scavenger-Mutant | -9/Exiles Resources | -11 -10 -10 -9 -9 -9 ----------- Run | Yrd Mat Min Mat Min Exi Matter Collected 1163 | 253 150 40 484 236 . Remotely . | . . . . . . Salvage Created 899 | 28 163 14 515 179 . Parts 64 | 7 18 2 24 13 . Haulers Intercepted 4 | . 1 . 3 . . Recyclers Shooed 3 | 1 . . 1 1 . Parts Field Recycled . | . . . . . . Retrieved Matter . | . . . . . . Parts Self-Destructed . | . . . . . . Prevented . | . . . . . . Kills | -11 -10 -10 -9 -9 -9 ------- Run | Yrd Mat Min Mat Min Exi Combat Hostiles Destroyed 18 | . 5 3 7 3 . Guns 15 | . 5 1 6 3 . AOE 3 | . . 2 1 . . Classes Destroyed 10 | 1 3 . 5 1 . Worker 1 | . . . . 1 . Builder 1 | . 1 . . . . Tunneler 4 | 2 . . 1 1 . Hauler 4 | . 1 . 3 . . Recycler 2 | . . . 1 1 . Watcher 1 | . . . 1 . . Swarmer 11 | . 5 3 . 3 . Grunt 4 | . . . 4 . . Duelist 1 | . . . 1 . . Sentry 2 | . . . 2 . . Best Kill Streak 5 | 1 3 3 5 3 . Combat Bots Only 3 | . 3 3 2 3 . Max Kills in Single Turn 2 | 1 1 1 2 1 . Gunslinging . | . . . . . . Exploded 1 | . . 1 1 . . Melee . | . . . . . . Uniques/NPCs Destroyed . | . . . . . . Combat | -11 -10 -10 -9 -9 -9 -------- Run | Yrd Mat Min Mat Min Exi Hostile Shots Fired 65 | . 14 7 35 9 . Missed 16 | . 2 2 11 1 . Damage Taken 656 | . 182 68 356 50 . Core 173 | . 30 27 103 13 . Absorbed by Shields . | . . . . . . Ignored by Resistances 25 | . . . 11 14 . Core Remaining (%) 88 | 100 . 77 . . . Volleys Fired 66 | 8 17 3 31 7 . Largest 2 | 2 2 2 2 2 . Hottest 100 | 40 60 46 88 100 . Shots Fired 121 | 16 31 4 56 14 . Gun 113 | 16 29 2 52 14 . Cannon . | . . . . . . Launcher 8 | . 2 2 4 . . Special . | . . . . . . Kinetic 78 | 16 22 2 31 7 . Thermal 35 | . 7 . 21 7 . Explosive 8 | . 2 2 4 . . Electromagnetic . | . . . . . . Robot Hit Streak 8 | 6 7 3 8 5 . Robot Miss Streak 7 | 3 3 . 7 2 . Penetration Max . | . . . . . . Secondary Targets 1 | . . . . 1 . Max Gunslinging Chain 1 | . . . . 1 . Shots Hit Robots 69 | 9 16 2 34 8 . Core Hits 43 | 3 9 4 21 6 . Critical Kills . | . . . . . . Critical Parts Destroyed . | . . . . . . Critical Strikes 2 | . . . 1 1 . Burn 2 | . . . 1 1 . Melee Attacks . | . . . . . . Impact . | . . . . . . Slashing . | . . . . . . Piercing . | . . . . . . Sneak Attacks . | . . . . . . Combat Hostiles . | . . . . . . Follow-up Attacks . | . . . . . . Damage Inflicted 1559 | 100 187 177 930 165 . Guns 1021 | 100 187 13 556 165 . Cannons . | . . . . . . Explosions 538 | . . 164 374 . . Melee . | . . . . . . Ramming . | . . . . . . Kinetic 645 | 100 138 13 341 53 . Thermal 376 | . 49 . 215 112 . Explosive 538 | . . 164 374 . . Electromagnetic . | . . . . . . Impact . | . . . . . . Slashing . | . . . . . . Piercing . | . . . . . . Highest Corruption . | . . . . . . Average Corruption . | . . . . . . Corruption Purged . | . . . . . . Corruption Blocked . | . . . . . . Overload Shots . | . . . . . . Overflow Damage 4 | . . . 4 . . Projectiles . | . . . . . . Explosions 4 | . . . 4 . . Melee . | . . . . . . Knockbacks . | . . . . . . Impact . | . . . . . . Kinetic . | . . . . . . Secondary . | . . . . . . Self-Inflicted Damage 8 | . . . 8 . . Shots 1 | . . . 1 . . Rammed . | . . . . . . Targets Rammed . | . . . . . . Kicked . | . . . . . . Crushed . | . . . . . . Highest Temperature 249 | . . . 249 164 . Average Temperature 86 | . . . 93 67 . Received Heat Transfer 135 | . 6 . 129 . . Siege Activations . | . . . . . . Robots Corrupted . | . . . . . . Combat Hostiles . | . . . . . . Parts Fried . | . . . . . . Impact Corruptions . | . . . . . . Robots Melted . | . . . . . . Combat Hostiles . | . . . . . . Parts Melted 1 | . . . 1 . . Heat Transferred 877 | . 100 . 518 259 . Parts Sabotaged . | . . . . . . Parts Stolen . | . . . . . . Parts Stripped . | . . . . . . Power Chain Reactions . | . . . . . . Alert | -11 -10 -10 -9 -9 -9 ------- Run | Yrd Mat Min Mat Min Exi Peak Influence 426 | 10 340 188 426 232 . Initial 117 | . 6 78 72 117 . Average 194 | 4 188 183 253 188 . Maximum Alert Level 2 | . 1 . 2 1 . Low Security (%) 49 | 100 45 100 37 41 . Level 1 47 | . 54 . 51 58 . Level 2 3 | . . . 11 . . Level 3 . | . . . . . . Level 4 . | . . . . . . Level 5 . | . . . . . . High Security . | . . . . . . Max Security . | . . . . . . Squads Dispatched 5 | . 2 . 3 . . Investigation 3 | . 2 . 1 . . Extermination . | . . . . . . Reinforcement 2 | . . . 2 . . Assault . | . . . . . . Garrison . | . . . . . . Intercept . | . . . . . . Searches Triggered . | . . . . . . Construction Impeded . | . . . . . . Haulers Reinforced . | . . . . . . Active Scanning Responses . | . . . . . . Cargo Convoy Interrupts . | . . . . . . Stealth | -11 -10 -10 -9 -9 -9 --------- Run | Yrd Mat Min Mat Min Exi Distress Signals 2 | . . . 2 . . Communications Jammed . | . . . . . . Distress Signals . | . . . . . . Times Spotted 42 | . 15 3 19 5 . Peak Tracking Total 5 | . 5 3 5 3 . Tactical Retreats 5 | . 3 . . 2 . Traps | -11 -10 -10 -9 -9 -9 ------- Run | Yrd Mat Min Mat Min Exi Traps Triggered 3 | . 2 1 . . . Indirectly . | . . . . . . Trap Hack Attempts . | . . . . . . Triggered . | . . . . . . Disarmed . | . . . . . . Reprogrammed . | . . . . . . Reused . | . . . . . . Traps Extracted . | . . . . . . Installed . | . . . . . . Triggered . | . . . . . . Machines | -11 -10 -10 -9 -9 -9 ---------- Run | Yrd Mat Min Mat Min Exi Machines Disabled 3 | . . 1 2 . . Max in Single Turn 1 | . . 1 1 . . Machines Repaired . | . . . . . . Machines Dismantled . | . . . . . . Machines Sabotaged . | . . . . . . Overloaded Fab Kills . | . . . . . . Hacking | -11 -10 -10 -9 -9 -9 --------- Run | Yrd Mat Min Mat Min Exi Machines Accessed 17 | . 9 1 7 . . Terminals 13 | . 7 . 6 . . Fabricators . | . . . . . . Repair Stations . | . . . . . . Recycling Units 3 | . 2 . 1 . . Scanalyzers . | . . . . . . Garrison Access . | . . . . . . Total Hacks 66 | . 32 1 33 . . Successful 40 | . 18 1 21 . . Failed 24 | . 13 . 11 . . Catastrophic 4 | . 3 . 1 . . Database Lockouts 2 | . 1 . 1 . . Manual 50 | . 23 . 27 . . Terminals 62 | . 30 . 32 . . Fabricators . | . . . . . . Repair Stations . | . . . . . . Recycling Units 3 | . 2 . 1 . . Scanalyzers . | . . . . . . Garrison Access . | . . . . . . Terminal Hacks 23 | . 10 1 12 . . Robot Analysis 8 | . 2 . 6 . . Prototype ID Bank 3 | . 3 . . . . Open Door 1 | . . 1 . . . Terminal Index 2 | . 1 . 1 . . Recycling Unit Index 2 | . 1 . 1 . . Unreport Threat 1 | . . . 1 . . Locate Traps 5 | . 3 . 2 . . Recall Reinforcements 1 | . . . 1 . . Fabricator Hacks . | . . . . . . Repair Station Hacks . | . . . . . . Recycling Unit Hacks . | . . . . . . Scanalyzer . | . . . . . . Garrison Access Hacks . | . . . . . . Unauthorized Hacks 17 | . 8 . 9 . . Terminals 14 | . 6 . 8 . . Track 7 | . 3 . 4 . . Botnet 5 | . 2 . 3 . . Operators 2 | . 1 . 1 . . Fabricators . | . . . . . . Repair Stations . | . . . . . . Recycling Units 3 | . 2 . 1 . . Tunnel 3 | . 2 . 1 . . Scanalyzers . | . . . . . . Garrison Access . | . . . . . . Data Cores Recovered 1 | . . . 1 . . Used 1 | . . . 1 . . Hacking Detections 12 | . 7 . 5 . . Full Trace Events 2 | . 1 . 1 . . Feedback Events . | . . . . . . Feedback Blocked . | . . . . . . Robot Schematics Acquired . | . . . . . . Robots Built . | . . . . . . Authchips . | . . . . . . Time . | . . . . . . Total Robot Build Rating . | . . . . . . Part Schematics Acquired . | . . . . . . Parts Built . | . . . . . . Authchips . | . . . . . . Time . | . . . . . . Total Part Build Rating . | . . . . . . Parts Repaired . | . . . . . . Time . | . . . . . . Parts Recycled . | . . . . . . Recycled Matter . | . . . . . . Retrieved Matter . | . . . . . . Retrieved Components . | . . . . . . Parts Scanalyzed . | . . . . . . Part Schematics Acquired . | . . . . . . Parts Damaged . | . . . . . . Bothacking | -11 -10 -10 -9 -9 -9 ------------ Run | Yrd Mat Min Mat Min Exi Used RIF Installer . | . . . . . . Robots Hacked . | . . . . . . Non-combat . | . . . . . . Combat . | . . . . . . Robot Hacks Applied . | . . . . . . Relay Couplers Released . | . . . . . . Fabnet Peak Effective % . | . . . . . . Robots Rewired . | . . . . . . Allies Hacked . | . . . . . . Hacks Repelled . | . . . . . . Allies | -11 -10 -10 -9 -9 -9 -------- Run | Yrd Mat Min Mat Min Exi Total Allies 1 | . . . . 1 . Largest Group 1 | . . . . 1 . Highest-Rated Group 31 | . . . . 31 . Highest-Rated Ally 31 | . . . . 31 . Total Orders . | . . . . . . Ally Attacks . | . . . . . . Total Damage . | . . . . . . Kills . | . . . . . . Allies Corrupted . | . . . . . . Allies Melted . | . . . . . . Intel | -11 -10 -10 -9 -9 -9 ------- Run | Yrd Mat Min Mat Min Exi Robot Analysis Total 8 | . 2 . 6 . . Derelict Logs Recovered 2 | . . . . 2 . Drone Launches . | . . . . . . Drone Recoveries . | . . . . . . Exploration | -11 -10 -10 -9 -9 -9 ------------- Run | Yrd Mat Min Mat Min Exi Turns Passed 1247 | 74 442 86 331 286 28 Spaces Moved 1079 | 46 443 77 225 261 27 Core 16 | 16 . . . . . Treads . | . . . . . . Legs . | . . . . . . Wheels 1063 | 30 443 77 225 261 27 Hover . | . . . . . . Flight . | . . . . . . Fastest Speed 50 | 50 80 85 85 100 100 Average Speed 89 | 69 81 85 96 100 100 Slowest Speed 100 | 80 95 85 100 100 100 Overloaded Moves . | . . . . . . Propulsion Burnouts . | . . . . . . Robots Hopped . | . . . . . . Cave-ins Triggered . | . . . . . . Exploration Rate (%) 38 | 3 76 25 28 88 10 Regions Visited 5 Branch Regions 3 Pre-discovered Areas 3 | . 2 . 1 . . Known Exits Taken . | . . . . . . Unknown Exits Taken 5 | 1 1 1 1 1 . Scrap Searched 2 | . . 1 . 1 . Spaces Dug . | . . . . . . Terrain Destroyed 45 | . 17 10 18 . . Melee . | . . . . . . Projectile . | . . . . . . AOE 45 | . 17 10 18 . . Terrain Rammed . | . . . . . . Walls Destroyed . | . . . . . . Machines Disabled . | . . . . . . Actions | -11 -10 -10 -9 -9 -9 --------- Run | Yrd Mat Min Mat Min Exi Total 1246 | 70 494 95 287 273 27 Wait 13 | . 11 . 2 . . Move 1074 | 45 442 76 224 260 27 Hop . | . . . . . . Pick Up 23 | 8 5 4 5 1 . Fast Attach 12 | 6 2 2 2 . . Attach 7 | 2 . . 5 . . Detach 4 | . 1 1 2 . . Swap 25 | . 10 3 9 3 . Drop 22 | 1 6 6 7 2 . Fire 66 | 8 17 3 31 7 . Melee . | . . . . . . Ram . | . . . . . . Kick . | . . . . . . Crush . | . . . . . . Escape Stasis . | . . . . . . Rewire . | . . . . . . Trap . | . . . . . . Miscellaneous . | . . . . . . Route ------- -11/Scrapyard -10/Materials (discovered 4 exits: *Mat x2 / *Min / [Sub]) -10/Mines -9/Materials -9/Mines (discovered 3 exits: [*Mat x2] / [*Exi]) -9/Exiles (discovered 1 exit: [*Min]) History --------- Turn | Location | Event 12 | -11/Scrapyard | Discovered new exit (range 15) 75 | -11/Scrapyard | Entered Materials 170 | -10/Materials | Central database locked down 293 | -10/Materials | Discovered new exit (range 14) 309 | -10/Materials | Discovered new exit (range 9) 324 | -10/Materials | Build established: Mutant 422 | -10/Materials | Discovered new exit (range 10) 456 | -10/Materials | Discovered new exit (range 9) 517 | -10/Materials | Entered Mines 557 | -10/Mines | Met a Derelict who couldn't figure out how to use a Trap Extractor 598 | -10/Mines | Discovered new exit (range 3) 603 | -10/Mines | Entered Materials 603 | -9/Materials | Evolved 2 slots: Propulsion x1, Utility x1 745 | -9/Materials | Discovered new exit (range 6) 899 | -9/Materials | Central database locked down 934 | -9/Materials | Entered Mines 944 | -9/Mines | Learned location of 1 exit from Materials 1061 | -9/Mines | Escorted by a lone wolf Derelict 1105 | -9/Mines | Discovered new exit (range 9) 1171 | -9/Mines | Discovered new exit (range 5) 1197 | -9/Mines | Learned Materials emergency access door positions 1209 | -9/Mines | Build established: Scavenger-Mutant 1216 | -9/Mines | Deemed a non-threat by the Exiles lab entrance 1216 | -9/Mines | Discovered new exit (range 5) 1220 | -9/Mines | Entered Exiles 1220 | -9/Exiles | Found Exiles lab destroyed 1236 | -9/Exiles | Discovered new exit (range 15) 1248 | -9/Exiles | Self-destructed Last Messages --------------- operations..." 01106_ OS-MB7(g) slips into the shadows. 01109_ T-07 Excavator is excavating. 01146_ T-07 Excavator destroyed. 01150_ Dropped Imp. Ion Engine. 01150_ Acquired Seismic Detector. 01151_ Acquired 14 matter. 01171_ EXIT=FOUND 01181_ Searching scrap... 01181_ Found VTOL Module. 01181_ Found Lrg. Battery. 01181_ Found 21 Matter. 01182_ Acquired 17 matter. 01197_ Acquired derelict log, extracted data. Data stored: Materials emergency access points. 01216_ "No threat detected, you may enter." 01216_ EXIT=FOUND LOCATION=UNKNOWN GOAL=ESCAPE 01236_ EXIT=FOUND Map ----- +----------------------------------------------------+ | ?????????????????????????????????????????????????? | | ?????????????????????????????????????????????????? | | ?????????????????????????????????????????????????? | | ?????????????????????????????????????????????????? | | ?????????????????????????????????????????????????? | | ?????????????????????????????????????????????????? | | ?????????????????????????????????????????????????? | | ?????????????????????????????????????????????????? | | ?????????????????????????????????????????????????? | | ?????????????????????????????????????????????????? | | ?????????????????????????????????????????????????? | | ?????????????????????????????????????????????????? | | ???????????????????????????????????????? < ##???? | | ???????????????????????????????????????? ##???? | | ??????????????????????????????????????## ##???? | | ????????????????????????????????????#### ###???? | | ????????????????????????????????????### ###???? | | ????????????????###?????????????????## ##???? | | ???????????????####????????????????### ##???? | | ???????????????### ???????????????#### ##???? | | ??????????????###" ??????????????### # ?????? | | ????????????##### ####???????#### ##?????? | | ????????????#### g############## ###?????? | | ?????????## # ########## ##??????? | | ?????????## #""""## ###??????? | | ????????? # @ ###??????? | | ?????????? ##g ###?????? | | ?????????????????#### #####???? | | ??????????????????##"""""#### ######?? | | ??????????????????############## #####? | | ??????????????????########?######### ###? | | ??????????????????????????????######## ##? | | ??????????????????????????????????###### ##? | | ????????????????????????????????????###### ### | | ??????????????????????????????????????###" ### | | ???????????????????????????????????????##### ## | | ???????????????????????????????????????##### | | ??????????????????????????????????????????### | | ??????????????????????????????????????????##### | | ???????????????????????????????????????????#### | | ?????????????????????????????????????????????### | | ?????????????????????????????????????????????##### | | ??????????????????????????????????????????????#### | | ?????????????????????????????????????????????????? | | ?????????????????????????????????????????????????? | | ?????????????????????????????????????????????????? | | ?????????????????????????????????????????????????? | | ?????????????????????????????????????????????????? | | ?????????????????????????????????????????????????? | | ?????????????????????????????????????????????????? | +----------------------------------------------------+ Best States ------------- Heat Dissipation 28 Energy Generation 14 Energy Capacity 280 Matter Stores 300 Matter Capacity 300 Sight Range 16 Terrain Scan Density 10 Armor Coverage 150 Resistance: KI 20 Evasion (%) 50 Recoil Reduction 1 Offensive Hacking 10 Defensive Hacking 10 Item Schematics ----------------- None Robot Schematics ------------------ None Fabricated ------------ Nothing Alien Tech Used ----------------- None Achievements -------------- None Challenges ------------ None Game ------ Seed LauncherTerrabombMace Manual? 0 Play Time 00:17:41 Cumulative 1065.0 hours Start 2024.03.17 @ 11:10:26 End 2024.03.17 @ 11:35:37 Sessions 1 Manual Loads 0 Difficulty Rogue Special Mode None Game No. 534 Rogue 407 Adventurer 125 Explorer 2 Win Type - Total 128 Types 99/10/9/3/3/0/0/2/2 Lore% 82 Gallery% 90 Achievement% 84 Wizard Run 0 Options --------- Layout 0 ASCII 0 Keyboard 1 Movement Numpad Keybinds 0 Fullscreen 1 Font 36/Terminus++ Map View 76x50 Zoom Use 0% Tactical HUD 1 Map Filters NONE Filters NONE Steam 1 RUN: add12971-70ee-42ff-b5b0-90a4e7b2775e